bitfinex-derivatives/quotes_BTCF0:USTF0_20260113
["timestamp","ask_amount","ask_price","bid_price","bid_amount"]
[1768330061968,0.096,93843.0,93820.0,0.070664]
[1768330061969,0.010661,93842.0,93820.0,0.070664]
[1768330062276,0.096,93843.0,93821.0,0.09432687]
[1768330062475,0.010661,93840.0,93821.0,0.16498987]
[1768330062677,0.10085005,93841.0,93821.0,0.06]
[1768330062977,0.10085005,93841.0,93822.0,0.010663]
[1768330063176,0.10085005,93841.0,93822.0,0.070663]
[1768330063366,0.10085005,93841.0,93822.0,0.06]
[1768330063770,0.010661,93839.0,93822.0,0.06]
[1768330064167,0.096,93843.0,93823.0,0.09432687]
[1768330064168,0.010661,93840.0,93823.0,0.09432687]
[1768330064382,0.01066,93851.0,93829.0,0.09314771]
[1768330064567,0.01066,93851.0,93830.0,0.010662]
[1768330064767,0.09551653,93853.0,93833.0,0.010662]
[1768330065061,0.09551653,93853.0,93833.0,0.070662]
[1768330065264,0.09551653,93853.0,93835.0,0.010662]
[1768330065472,0.09551653,93853.0,93835.0,0.060662]
[1768330065770,0.01066,93852.0,93835.0,0.05]
[1768330066365,0.010661,93844.0,93835.0,0.05]
[1768330066677,0.09018905,93845.0,93835.0,0.05]
[1768330067262,0.01066,93851.0,93835.0,0.05]
[1768330067667,0.09018905,93851.0,93835.0,0.05]
[1768330068179,0.010662,93835.0,93820.0,0.096]
[1768330068478,0.09018905,93833.0,93820.0,0.05]
[1768330068669,0.09018905,93825.0,93802.0,0.19032687]
[1768330068871,0.18618905,93831.0,93809.0,0.010665]
[1768330069065,0.18618905,93831.0,93809.0,0.070665]
[1768330069066,0.09018905,93830.0,93809.0,0.070665]
[1768330069276,0.09018905,93828.0,93811.0,0.010664]
[1768330069465,0.09018905,93828.0,93811.0,0.06]
[1768330070065,0.00015989,93829.0,93811.0,0.06]
[1768330070275,0.00015989,93829.0,93812.0,0.09432687]
[1768330070481,0.00015989,93829.0,93822.0,0.010663]
[1768330070685,0.096,93837.0,93822.0,0.070663]
[1768330071774,0.010661,93842.0,93822.0,0.070663]
[1768330073675,0.010661,93842.0,93823.0,0.09432687]
[1768330073879,0.010661,93842.0,93823.0,0.06]
[1768330074580,0.010661,93842.0,93823.0,0.15432687]
[1768330074980,0.010661,93842.0,93823.0,0.06]
[1768330075378,0.10085105,93836.0,93823.0,0.06]
[1768330075885,0.09018905,93836.0,93823.0,0.06]
[1768330076186,0.00015989,93839.0,93823.0,0.06]
[1768330076377,0.010662,93838.0,93823.0,0.06]
[1768330076578,0.00015989,93839.0,93823.0,0.06]
[1768330076780,0.09018905,93830.0,93801.0,0.09432687]
[1768330076973,0.09018905,93830.0,93811.0,0.06015989]
[1768330077286,0.096,93831.0,93812.0,0.09432687]
[1768330077488,0.096,93831.0,93812.0,0.06]
[1768330077680,0.09018905,93826.0,93812.0,0.06]
[1768330078590,0.09018905,93825.0,93812.0,0.06]
[1768330079286,0.10085205,93821.0,93812.0,0.06]
[1768330079990,0.09018905,93821.0,93812.0,0.06]
[1768330080185,0.10085205,93821.0,93812.0,0.06]
[1768330080485,0.08427987,93830.0,93812.0,0.02]
[1768330080690,0.096,93831.0,93812.0,0.02]
[1768330080898,0.010663,93829.0,93812.0,0.02]
[1768330081882,0.096,93836.0,93812.0,0.02]
[1768330081883,0.010662,93832.0,93812.0,0.02]
[1768330082381,0.096,93836.0,93813.0,0.09432687]
[1768330082580,0.096,93836.0,93817.0,0.10499087]
[1768330082884,0.106662,93836.0,93817.0,0.14432687]
[1768330083074,0.096,93836.0,93818.0,0.010664]
[1768330083282,0.096,93836.0,93820.0,0.010664]
[1768330083479,0.096,93836.0,93820.0,0.05]
[1768330084685,0.096,93836.0,93820.0,0.14432687]
[1768330084891,0.096,93843.0,93828.0,0.09237218]
[1768330085095,0.09394166,93840.0,93828.0,0.06]
[1768330085388,0.096,93843.0,93828.0,0.06]
[1768330085585,0.096,93850.0,93836.0,0.010662]
[1768330085787,0.096,93850.0,93836.0,0.05]
[1768330086395,0.010661,93847.0,93836.0,0.05]
[1768330086590,0.10676288,93849.0,93836.0,0.05]
[1768330086793,0.01066,93849.0,93836.0,0.05]
[1768330087782,0.09610288,93849.0,93836.0,0.05]
[1768330089001,0.010661,93844.0,93836.0,0.05]
[1768330089396,0.010661,93840.0,93823.0,0.09769083]
[1768330089599,0.10676388,93840.0,93823.0,0.02]
[1768330089789,0.10676388,93840.0,93824.0,0.096]
[1768330089989,0.10676388,93840.0,93824.0,0.146]
[1768330090995,0.09610288,93840.0,93824.0,0.156663]
[1768330091496,0.09610288,93836.0,93824.0,0.05]
[1768330091685,0.10676488,93836.0,93824.0,0.05]
[1768330091890,0.010662,93834.0,93824.0,0.05]
[1768330092492,0.010662,93830.0,93824.0,0.05]
[1768330092692,0.10676488,93833.0,93824.0,0.05]
[1768330092892,0.09610288,93833.0,93824.0,0.05]
[1768330093092,0.00015989,93838.0,93824.0,0.05]
[1768330093493,0.09626277,93838.0,93824.0,0.05]
[1768330093794,0.09610288,93833.0,93824.0,0.05]
[1768330094390,0.00015989,93838.0,93825.0,0.09769083]
[1768330094591,0.096,93837.0,93825.0,0.09769083]
[1768330094792,0.096,93837.0,93823.0,0.00015989]
[1768330094993,0.096,93837.0,93823.0,0.06015989]
[1768330095996,0.00015989,93838.0,93823.0,0.07082289]
[1768330096304,0.096,93844.0,93832.0,0.09648331]
[1768330096507,0.096,93844.0,93833.0,0.010662]
[1768330096802,0.096,93844.0,93833.0,0.02]
[1768330098597,0.010661,93843.0,93833.0,0.02]
[1768330098796,0.106661,93844.0,93833.0,0.02]
[1768330098996,0.010661,93840.0,93833.0,0.02]
[1768330099197,0.096,93844.0,93833.0,0.02]
[1768330099803,0.18998897,93844.0,93833.0,0.02]
[1768330100403,0.010661,93841.0,93833.0,0.02]
[1768330101608,0.010661,93839.0,93833.0,0.02]
[1768330102200,0.010661,93842.0,93833.0,0.02]
[1768330102911,0.09398897,93844.0,93833.0,0.02]
[1768330103102,0.096,93845.0,93833.0,0.02]
[1768330103303,0.096,93845.0,93833.0,0.030662]
[1768330104110,0.096,93845.0,93834.0,0.09648331]
[1768330104312,0.096,93845.0,93834.0,0.02]
[1768330108812,0.106661,93845.0,93834.0,0.02]
[1768330109014,0.096,93845.0,93834.0,0.02]
[1768330110015,0.106661,93845.0,93834.0,0.02]
[1768330111011,0.096,93845.0,93834.0,0.02]
[1768330111209,0.18998897,93845.0,93834.0,0.02]
[1768330111409,0.09398897,93844.0,93834.0,0.02]
[1768330112812,0.096,93845.0,93834.0,0.02]
[1768330113509,0.09398897,93844.0,93834.0,0.02]
[1768330113912,0.096,93845.0,93834.0,0.02]
[1768330114413,0.096,93845.0,93830.0,0.010662]
[1768330114617,0.096,93845.0,93830.0,0.060662]
[1768330115213,0.19461374,93845.0,93830.0,0.060662]
[1768330115913,0.09861374,93844.0,93830.0,0.060662]
[1768330116419,0.096,93845.0,93830.0,0.060662]
[1768330116614,0.096,93845.0,93832.0,0.010662]
[1768330116814,0.096,93845.0,93832.0,0.060662]
[1768330118322,0.096,93845.0,93833.0,0.10909751]
[1768330118519,0.05755113,93856.0,93836.0,0.19389447]
[1768330118721,0.01536148,93867.0,93854.0,0.09843551]
[1768330118924,0.01102619,93867.0,93854.0,0.06]
[1768330119421,0.09457729,93864.0,93854.0,0.06]
[1768330120027,0.09861374,93861.0,93838.0,0.09843551]
[1768330120212,0.09861374,93859.0,93840.0,0.010661]
[1768330120410,0.09861374,93859.0,93842.0,0.010661]
[1768330120619,0.010658,93865.0,93844.0,0.010661]
[1768330120823,0.09457729,93860.0,93844.0,0.070661]
[1768330121125,0.09457729,93860.0,93844.0,0.06]
[1768330121322,0.09861374,93861.0,93844.0,0.06]
[1768330121716,0.106658,93866.0,93845.0,0.10909651]
[1768330121918,0.09861374,93864.0,93845.0,0.070661]
[1768330122119,0.09861374,93864.0,93847.0,0.01066]
[1768330122422,0.01102619,93867.0,93848.0,0.09843551]
[1768330122626,0.01102619,93867.0,93849.0,0.09843551]
[1768330122924,0.01102619,93867.0,93849.0,0.07066]
[1768330123321,0.01102619,93867.0,93849.0,0.06]
[1768330123322,0.09861374,93866.0,93849.0,0.06]
[1768330123521,0.10963993,93867.0,93850.0,0.01066]
[1768330123725,0.10963993,93867.0,93850.0,0.06066]
[1768330123928,0.12029793,93867.0,93850.0,0.05]
[1768330124122,0.09861374,93866.0,93850.0,0.05]
[1768330124530,0.09861374,93866.0,93851.0,0.01066]
[1768330124717,0.09861374,93866.0,93851.0,0.02066]
[1768330125314,0.09877363,93868.0,93853.0,0.01066]
[1768330125523,0.00015989,93868.0,93854.0,0.09843551]
[1768330125825,0.00015989,93868.0,93854.0,0.06]
[1768330126031,0.00015989,93868.0,93855.0,0.01066]
[1768330126331,0.01657394,93872.0,93855.0,0.06]
[1768330126519,0.01657394,93872.0,93856.0,0.09843551]
[1768330126719,0.01657394,93872.0,93856.0,0.15843551]
[1768330126920,0.09861374,93871.0,93856.0,0.06]
[1768330127522,9.4e-07,93872.0,93865.0,0.19389447]
[1768330127732,0.07821052,93888.0,93865.0,0.15843551]
[1768330128027,0.00532521,93893.0,93869.0,0.19389447]
[1768330128234,0.00532521,93893.0,93871.0,0.09843551]
[1768330128432,0.00532521,93893.0,93872.0,0.19389447]
[1768330128629,0.00532521,93893.0,93872.0,0.0201598]
[1768330129021,0.00532521,93893.0,93872.0,0.12925331]
[1768330129231,0.09704,93900.0,93886.0,0.09843551]
[1768330129527,0.20314131,93900.0,93876.0,0.010657]
[1768330129724,0.34503136,93900.0,93876.0,0.06]
[1768330129926,0.11156418,93900.0,93878.0,0.09843551]
[1768330130127,0.11156418,93900.0,93879.0,0.19389447]
[1768330130330,0.11156418,93900.0,93881.0,0.19389447]
[1768330130530,0.11156418,93900.0,93882.0,0.09843551]
[1768330130724,0.11156418,93900.0,93882.0,0.15843551]
[1768330130922,0.09704,93900.0,93882.0,0.06]
[1768330131123,0.17662874,93910.0,93884.0,0.09545896]
[1768330131334,0.17662874,93910.0,93893.0,0.09545896]
[1768330131335,0.09596,93909.0,93893.0,0.09545896]
[1768330131624,0.01427285,93910.0,93894.0,0.09545896]
[1768330131926,0.09596,93909.0,93895.0,0.09545896]
[1768330132126,0.01956391,93913.0,93895.0,0.14545896]
[1768330132330,0.09596,93912.0,93896.0,0.09545896]
[1768330132538,0.00532408,93913.0,93897.0,0.09545896]
[1768330132831,0.0197836,93913.0,93897.0,0.14545896]
[1768330133025,0.09596,93912.0,93897.0,0.14545896]
[1768330133220,0.09596,93912.0,93897.0,0.05]
[1768330134031,0.10128408,93913.0,93899.0,0.09545896]
[1768330134237,0.10128408,93913.0,93893.0,0.010655]
[1768330134536,0.10128408,93913.0,93893.0,0.070655]
[1768330135337,0.09596,93912.0,93896.0,0.010655]
[1768330135535,0.09596,93912.0,93896.0,0.06]
[1768330135926,0.00532408,93913.0,93898.0,0.19389447]
[1768330136123,0.00532408,93913.0,93899.0,0.09545896]
[1768330136334,0.00532408,93913.0,93899.0,0.06]
[1768330136638,0.2702,93940.0,93929.0,0.010651]
[1768330136837,0.010648,93955.0,93929.0,0.010651]
[1768330136838,0.09596,93958.0,93934.0,0.01065]
[1768330137026,0.01964772,93953.0,93934.0,0.06]
[1768330137229,0.01964772,93953.0,93901.0,0.010654]
[1768330137230,0.01964772,93953.0,93910.0,0.14189005]
[1768330137529,0.00532181,93953.0,93936.0,0.00457934]
[1768330137725,0.00532181,93953.0,93937.0,0.00457934]
[1768330138042,0.010649,93950.0,93934.0,0.00015971]
[1768330138338,0.010649,93952.0,93934.0,0.06015971]
[1768330138528,0.010649,93949.0,93934.0,0.06015971]
[1768330138725,0.01065,93943.0,93934.0,0.06015971]
[1768330138931,0.010649,93945.0,93934.0,0.06015971]
[1768330139244,0.10926374,93936.0,93916.0,0.09596]
[1768330139534,0.010651,93932.0,93916.0,0.14596]
[1768330139727,0.09861374,93936.0,93916.0,0.14596]
[1768330139930,0.10926374,93936.0,93916.0,0.14596]
[1768330140133,0.010651,93933.0,93916.0,0.14596]
[1768330140340,0.010651,93933.0,93917.0,0.00015971]
[1768330140643,0.01065,93936.0,93918.0,0.0120569]
[1768330140839,0.01065,93940.0,93919.0,0.0120569]
[1768330141039,0.15254005,93940.0,93919.0,0.0620569]
[1768330141337,0.010652,93924.0,93906.0,0.0120569]
[1768330141636,0.09861374,93917.0,93906.0,0.02]
[1768330141830,0.010653,93911.0,93888.0,0.0144872]
[1768330142025,0.09861374,93923.0,93902.0,0.0144872]
[1768330142229,0.09861374,93930.0,93911.0,0.010653]
[1768330142425,0.09861374,93930.0,93911.0,0.05]
[1768330142636,0.09861374,93923.0,93911.0,0.05015971]
[1768330142835,0.09861374,93920.0,93902.0,0.09592]
[1768330143027,0.09861374,93916.0,93891.0,0.0144872]
[1768330143231,0.09861374,93916.0,93892.0,0.09592]
[1768330143431,0.09861374,93923.0,93906.0,0.010654]
[1768330143643,0.09861374,93923.0,93903.0,0.010654]
[1768330143834,0.09861374,93929.0,93905.0,0.010654]
[1768330144035,0.09861374,93923.0,93901.0,0.010654]
[1768330144238,0.19019087,93918.0,93901.0,0.03]
[1768330144439,0.09861374,93917.0,93901.0,0.03]
[1768330144637,0.09861374,93915.0,93901.0,0.03]
[1768330146247,0.09861374,93915.0,93902.0,0.010654]
[1768330146441,0.09532278,93923.0,93902.0,0.070654]
[1768330146646,0.09532278,93923.0,93904.0,0.010654]
[1768330146848,0.09532278,93923.0,93904.0,0.06]
[1768330147143,0.00015971,93930.0,93907.0,0.010654]
[1768330147332,0.00015971,93930.0,93907.0,0.06]
[1768330147537,0.09548249,93930.0,93907.0,0.06]
[1768330147835,0.19446434,93930.0,93907.0,0.06]
[1768330148039,0.09532278,93928.0,93907.0,0.06]
[1768330148545,0.10597478,93926.0,93907.0,0.06]
[1768330149439,0.00015971,93930.0,93907.0,0.06]
[1768330149440,0.09532278,93929.0,93907.0,0.070654]
[1768330149633,0.10597378,93929.0,93907.0,0.06]
[1768330149834,0.010652,93920.0,93907.0,0.06]
[1768330150037,0.09532278,93912.0,93899.0,0.09607971]
[1768330150244,0.09532278,93911.0,93899.0,0.05015971]
[1768330150542,0.010654,93905.0,93899.0,0.05015971]
[1768330150745,0.09592,93919.0,93899.0,0.06081371]
[1768330150948,0.09592,93919.0,93899.0,0.05015971]
[1768330151149,0.09532278,93924.0,93899.0,0.00015971]
[1768330151449,0.10597378,93931.0,93910.0,0.010653]
[1768330151742,0.09592,93932.0,93915.0,0.00092775]
[1768330152343,0.09532278,93929.0,93906.0,0.09592]
[1768330152642,0.09532278,93929.0,93899.0,0.00170596]
[1768330152643,0.010653,93911.0,93900.0,0.09592]
[1768330152853,0.09532278,93913.0,93900.0,0.14592]
[1768330153548,0.19430463,93907.0,93899.0,0.00015971]
[1768330153855,0.09532278,93904.0,93889.0,0.09592]
[1768330154046,0.09532278,93904.0,93890.0,0.09592]
[1768330154238,0.09532278,93904.0,93890.0,0.15592]
[1768330154743,0.010653,93909.0,93890.0,0.15592]
[1768330154948,0.00015971,93906.0,93890.0,0.15592]
[1768330155845,0.09532278,93904.0,93890.0,0.06]
[1768330156051,0.09532278,93892.0,93868.0,0.010658]
[1768330156351,0.010658,93869.0,93853.0,0.00532748]
[1768330156646,0.09592,93874.0,93855.0,0.05234405]
[1768330156847,0.09412035,93875.0,93855.0,0.05234405]
[1768330157350,0.00025666,93874.0,93855.0,0.05234405]
[1768330157743,0.00025666,93874.0,93859.0,0.010659]
[1768330158054,0.00025666,93874.0,93859.0,0.070659]
[1768330158546,0.09437701,93874.0,93859.0,0.06]
[1768330158847,0.18596436,93872.0,93859.0,0.06]
[1768330159052,0.09412035,93869.0,93859.0,0.06]
[1768330160347,0.18596436,93867.0,93850.0,4.4669]
[1768330160555,0.0942172,93866.0,93850.0,4.5269]
[1768330160852,7.503e-05,93865.0,93850.0,4.5269]
[1768330161648,0.09412035,93864.0,93850.0,4.5269]
[1768330161842,0.0942172,93863.0,93850.0,4.5269]
[1768330162055,9.685e-05,93863.0,93850.0,4.5269]
[1768330162647,0.0942172,93863.0,93850.0,4.5269]
[1768330162848,0.08889085,93863.0,93850.0,4.5269]
[1768330163246,0.010659,93859.0,93850.0,3.03569427]
[1768330163442,0.010659,93859.0,93850.0,2.97569427]
[1768330163848,0.106579,93862.0,93850.0,2.97569427]
[1768330164654,0.09592,93862.0,93850.0,2.97569427]
[1768330164856,0.09592,93862.0,93850.0,3.07155035]
[1768330165047,0.09596,93865.0,93850.0,3.07155035]
[1768330165245,0.010658,93873.0,93851.0,0.19699976]
[1768330165553,0.09596,93872.0,93856.0,0.09585608]
[1768330165859,0.09596,93872.0,93856.0,0.10234008]
[1768330166561,0.09596,93872.0,93850.0,2.97569427]
[1768330166562,0.09324204,93870.0,93850.0,1.58084775]
[1768330166753,0.09324204,93870.0,93807.0,0.07548544]
[1768330166754,0.010661,93839.0,93833.0,6.2e-07]
[1768330167056,0.09596,93840.0,93808.0,0.010665]
[1768330167258,0.09596,93839.0,93808.0,0.470665]
[1768330167552,0.010662,93837.0,93811.0,0.010665]
[1768330167756,0.106622,93837.0,93811.0,0.070665]
[1768330167951,0.106622,93837.0,93814.0,0.010664]
[1768330168147,0.00015981,93845.0,93822.0,0.010663]
[1768330168353,0.00015981,93845.0,93823.0,0.010663]
[1768330168555,0.00015981,93845.0,93824.0,0.09585608]
[1768330168753,0.00015981,93845.0,93827.0,0.18633976]
[1768330168952,0.00015981,93845.0,93828.0,0.18633976]
[1768330169161,0.01082081,93845.0,93829.0,0.09585608]
[1768330169458,0.00015981,93845.0,93829.0,0.07583108]
[1768330169659,0.00015981,93845.0,93818.0,0.53268]
[1768330169855,0.00015981,93845.0,93818.0,0.59268]
[1768330170058,0.00015981,93845.0,93819.0,0.09048368]
[1768330170258,0.00015981,93845.0,93821.0,0.09048368]
[1768330170562,0.00015981,93845.0,93821.0,0.15048368]
[1768330170951,0.0907946,93848.0,93822.0,0.09048368]
[1768330171148,0.0907946,93848.0,93823.0,0.09048368]
[1768330171462,0.09596,93864.0,93848.0,0.09585608]
[1768330171758,0.09596,93864.0,93849.0,0.09585608]
[1768330172356,0.010659,93861.0,93849.0,0.09585608]
[1768330172550,0.010659,93861.0,93824.0,0.010663]
[1768330172551,0.09596,93864.0,93841.0,0.09585608]
[1768330172756,0.00508961,93863.0,93841.0,0.06]
[1768330173160,0.09596,93864.0,93842.0,0.09585608]
[1768330173367,0.09596,93864.0,93845.0,0.10651708]
[1768330173560,0.0936167,93864.0,93846.0,0.09585608]
[1768330174655,0.0754854,93863.0,93833.0,0.09585608]
[1768330174858,0.02188096,93857.0,93833.0,0.15585608]
[1768330175257,0.00015981,93854.0,93833.0,0.15585608]
[1768330175459,0.09596,93853.0,93834.0,0.09910439]
[1768330175758,0.09596,93853.0,93834.0,0.15910439]
[1768330176065,0.11784096,93853.0,93826.0,0.09910439]
[1768330176256,0.02188096,93849.0,93827.0,0.53268]
[1768330176455,0.02188096,93849.0,93827.0,0.06]
[1768330179162,0.01655688,93849.0,93827.0,0.06]
[1768330179560,0.010662,93836.0,93819.0,0.09910439]
[1768330179763,0.010662,93834.0,93819.0,0.14910439]
[1768330180152,0.09596,93841.0,93819.0,0.05]
[1768330180153,0.010664,93820.0,93819.0,0.05]
[1768330180463,0.09596,93824.0,93795.0,0.010666]
[1768330180656,0.09596,93823.0,93805.0,0.42312942]
[1768330180852,0.05843302,93839.0,93799.0,0.00012964]
[1768330180853,0.09596,93822.0,93799.0,0.00012964]
[1768330181160,0.09596,93821.0,93799.0,0.05012964]
[1768330181361,0.09596,93820.0,93799.0,0.05012964]
[1768330181566,0.09596,93819.0,93799.0,0.05012964]
[1768330181766,0.09361744,93819.0,93801.0,0.0001599]
[1768330182069,0.010665,93810.0,93801.0,0.0001599]
[1768330182364,0.00040183,93815.0,93801.0,9e-07]
[1768330182566,0.010665,93807.0,93789.0,0.09910439]
[1768330183667,0.25069504,93807.0,93767.0,0.09910439]
[1768330183866,0.23628,93807.0,93768.0,0.09910439]
[1768330184065,0.010665,93804.0,93768.0,0.15910439]
[1768330184372,0.010668,93779.0,93768.0,0.15910439]
[1768330184666,9.437e-05,93778.0,93760.0,0.09910439]
[1768330184860,9.437e-05,93778.0,93761.0,0.09910439]
[1768330185061,9.437e-05,93778.0,93762.0,0.09910439]
[1768330185262,0.00025427,93778.0,93763.0,0.09910439]
[1768330185569,0.00025427,93778.0,93764.0,0.09910439]
[1768330185764,0.00025427,93778.0,93764.0,0.14910439]
[1768330186272,0.00025427,93778.0,93764.0,0.09910439]
[1768330186273,0.0001599,93778.0,93764.0,0.09910439]
[1768330187862,0.0001599,93778.0,93765.0,0.01067]
[1768330188165,0.0001599,93778.0,93766.0,0.09910439]
[1768330189166,0.0001599,93778.0,93756.0,0.09910439]
[1768330189470,0.010669,93776.0,93757.0,0.09910439]
[1768330189668,0.0001599,93778.0,93758.0,0.1903507]
[1768330189869,0.0001599,93778.0,93760.0,0.1903507]
[1768330190059,0.0001599,93778.0,93761.0,0.09910439]
[1768330190262,0.010668,93785.0,93765.0,0.1903507]
[1768330190460,0.010668,93785.0,93767.0,0.09910439]
[1768330190662,0.010668,93782.0,93767.0,0.09910439]
[1768330190860,0.010668,93782.0,93759.0,0.09124631]
[1768330190861,0.096,93786.0,93757.0,0.09910439]
[1768330191170,0.010668,93780.0,93759.0,0.09910439]
[1768330191360,0.010668,93782.0,93760.0,0.09910439]
[1768330191566,0.0001599,93779.0,93761.0,0.09910439]
[1768330191770,0.0001599,93779.0,93762.0,0.09910439]
[1768330192866,0.0001599,93779.0,93762.0,0.05]
[1768330193071,0.0001599,93779.0,93763.0,0.09910439]
[1768330193369,8.801e-05,93778.0,93764.0,0.09910439]
[1768330193682,0.010668,93778.0,93765.0,0.09910439]
[1768330193869,0.0001599,93779.0,93765.0,0.14910439]
[1768330194467,0.0001599,93779.0,93765.0,0.09910439]
[1768330194764,0.010668,93777.0,93765.0,0.09910439]
[1768330195164,0.0001599,93779.0,93765.0,0.06]
[1768330195367,0.0001599,93779.0,93766.0,0.09910439]
[1768330198072,0.00012657,93778.0,93766.0,0.09910439]
[1768330198278,0.00010187,93777.0,93766.0,0.09910439]
[1768330198473,0.00010737,93776.0,93766.0,0.09910439]
[1768330198677,0.0001599,93779.0,93767.0,0.01067]
[1768330198880,0.05180226,93766.0,93732.0,0.09137548]
[1768330199183,0.010671,93758.0,93733.0,0.09124631]
[1768330199481,0.010671,93753.0,93734.0,0.09124631]
[1768330199665,0.00015999,93758.0,93735.0,0.09124631]
[1768330199863,0.010673,93740.0,93735.0,0.13653331]
[1768330200064,8.009e-05,93739.0,93735.0,0.06]
[1768330200264,8.009e-05,93739.0,93732.0,0.00012917]
[1768330200265,0.010673,93733.0,93732.0,1.7e-07]
[1768330200470,0.010674,93731.0,93713.0,0.00533544]
[1768330200665,0.010674,93726.0,93713.0,0.05533544]
[1768330200866,0.010675,93724.0,93714.0,0.09910439]
[1768330201072,0.09604,93739.0,93715.0,0.09910439]
[1768330201381,0.00015999,93728.0,93716.0,0.09910439]
[1768330201585,0.14793272,93767.0,93726.0,0.09910439]
[1768330201881,0.010673,93738.0,93727.0,0.09910439]
[1768330202079,0.010672,93745.0,93718.0,0.09910439]
[1768330202275,0.010674,93732.0,93718.0,0.09910439]
[1768330202478,0.010674,93732.0,93713.0,0.10443983]
[1768330202677,0.010674,93730.0,93715.0,0.1903507]
[1768330202881,0.00012262,93729.0,93716.0,0.09910439]
[1768330203080,0.00012262,93729.0,93716.0,0.06]
[1768330203286,0.010674,93727.0,93713.0,0.00533544]
[1768330203484,0.010674,93725.0,93713.0,0.05533544]
[1768330203685,1.5,93731.0,93713.0,0.00533544]
[1768330203880,1.5,93731.0,93697.0,0.09604]
[1768330203881,0.010675,93719.0,93702.0,0.09604]
[1768330204080,0.010675,93723.0,93702.0,0.05]
[1768330204378,0.010674,93727.0,93703.0,0.09124631]
[1768330204586,0.09694173,93727.0,93704.0,0.09124631]
[1768330204784,0.09604,93728.0,93706.0,0.09768769]
[1768330205084,0.09604,93728.0,93711.0,0.09768769]
[1768330205276,0.09604,93728.0,93704.0,0.09768769]
[1768330205476,0.09845913,93723.0,93688.0,0.09768769]
[1768330205678,0.09845913,93723.0,93694.0,0.080678]
[1768330205877,0.09845913,93723.0,93694.0,0.17766533]
[1768330206270,0.09845913,93723.0,93699.0,0.010677]
[1768330206480,0.010675,93720.0,93699.0,0.05]
[1768330206887,0.010675,93718.0,93699.0,0.05]
[1768330207083,0.010675,93716.0,93699.0,0.05]
[1768330208073,0.09845913,93723.0,93699.0,0.05]
[1768330208074,0.010676,93714.0,93699.0,0.05]
[1768330209079,0.18866228,93717.0,93695.0,0.010678]
[1768330209278,0.18866228,93717.0,93695.0,0.070678]
[1768330209677,0.09608,93717.0,93700.0,0.010677]
[1768330209985,0.00016008,93715.0,93700.0,0.19137667]
[1768330210290,0.00016008,93715.0,93694.0,0.05]
[1768330210491,0.010676,93714.0,93694.0,0.11]
[1768330210681,0.00016008,93715.0,93695.0,0.010678]
[1768330210882,0.00016008,93715.0,93695.0,0.06]
[1768330211589,0.00016008,93715.0,93694.0,0.05]
[1768330211590,0.23490745,93710.0,93694.0,0.05]
[1768330211889,0.24558345,93710.0,93694.0,0.05]
[1768330212085,0.010676,93708.0,93694.0,0.05]
[1768330212298,0.00012312,93707.0,93694.0,0.05]
[1768330212480,0.010677,93705.0,93683.0,0.09698733]
[1768330212676,0.18866228,93706.0,93683.0,0.15698733]
[1768330212887,0.14232517,93700.0,93683.0,0.06]
[1768330213082,0.18866228,93706.0,93683.0,0.06]
[1768330213285,0.010678,93697.0,93683.0,0.06]
[1768330213486,0.010678,93694.0,93683.0,0.06]
[1768330213791,0.00010747,93696.0,93683.0,0.06]
[1768330214195,0.00010747,93696.0,93683.0,0.15698733]
[1768330214383,0.010677,93705.0,93684.0,0.09698733]
[1768330214582,0.010677,93705.0,93684.0,0.11698733]
[1768330215283,0.00016008,93715.0,93689.0,0.09438934]
[1768330215484,0.09612,93711.0,93692.0,0.09698733]
[1768330215683,0.010676,93707.0,93685.0,0.09438934]
[1768330215888,0.010676,93707.0,93685.0,0.24137667]
[1768330216091,0.14232517,93710.0,93689.0,0.09698733]
[1768330216293,0.09612,93711.0,93690.0,0.09698733]
[1768330216594,0.010676,93708.0,93690.0,0.09698733]
[1768330216990,0.010676,93707.0,93685.0,0.010679]
[1768330217178,0.010677,93703.0,93685.0,0.05]
[1768330217786,0.010677,93704.0,93685.0,0.060679]
[1768330217988,0.010676,93708.0,93687.0,0.010679]
[1768330218193,0.14232517,93710.0,93687.0,0.06]
[1768330218395,0.010677,93701.0,93687.0,0.06]
[1768330218595,0.010677,93701.0,93678.0,0.09433545]
[1768330218596,0.23844517,93700.0,93678.0,0.09433545]
[1768330218894,0.14232517,93690.0,93673.0,0.00533772]
[1768330219095,0.14232517,93690.0,93673.0,0.06533772]
[1768330219293,0.010679,93685.0,93673.0,0.06533772]
[1768330219499,0.010679,93685.0,93673.0,0.00533772]
[1768330219991,0.14232517,93690.0,93664.0,0.10273349]
[1768330219992,0.010679,93684.0,93664.0,0.10273349]
[1768330220191,0.09612,93686.0,93670.0,0.010681]
[1768330220393,0.09612,93686.0,93668.0,0.09433545]
[1768330220787,0.14232517,93680.0,93665.0,0.010681]
[1768330220988,0.010679,93682.0,93665.0,0.06]
[1768330221189,0.01068,93674.0,93665.0,0.06]
[1768330221485,0.09483655,93685.0,93657.0,0.00011663]
[1768330221486,0.01068,93672.0,93657.0,0.00011663]
[1768330221689,0.010681,93670.0,93657.0,0.05011663]
[1768330221890,0.09612,93675.0,93657.0,0.05011663]
[1768330222290,0.01068,93674.0,93657.0,0.14445208]
[1768330222486,0.09876874,93672.0,93657.0,0.05011663]
[1768330222685,0.15091702,93667.0,93640.0,0.09433545]
[1768330222886,0.6096,93672.0,93644.0,0.010684]
[1768330223083,0.010681,93666.0,93647.0,0.09205249]
[1768330223386,0.00016016,93667.0,93649.0,0.09433545]
[1768330223706,0.00016016,93667.0,93633.0,0.00534]
[1768330223707,0.0989289,93667.0,93641.0,0.09433545]
[1768330223885,0.010682,93660.0,93641.0,0.15433545]
[1768330224083,0.09612,93659.0,93642.0,0.09433545]
[1768330224288,0.09612,93659.0,93642.0,0.14433545]
[1768330224499,0.010682,93658.0,93642.0,0.14433545]
[1768330225296,0.010682,93656.0,93642.0,0.14433545]
[1768330225600,0.09612,93659.0,93642.0,0.05]
[1768330225897,0.106802,93659.0,93642.0,0.05]